[Event "*** Titled Tuesday Blitz"]
[Site "Chess.com"]
[Date "2021.04.27"]
[Round "4"]
[White "jamalm2"]
[Black "VladimirBugayev"]
[Result "0-1"]
[WhiteElo "2013"]
[BlackElo "2251"]
[TimeControl "180+1"]
[EndTime "10:40:00 PDT"]
[Termination "VladimirBugayev won by checkmate"]

1. e4 {[%clk 0:03:00.9]} 1... c6 {[%clk 0:02:59.6]} 2. c4 {[%clk 0:02:58.7]}
2... d5 {[%clk 0:02:59.8]} 3. cxd5 {[%clk 0:02:58.7]} 3... cxd5 {[%clk
0:03:00.4]} 4. exd5 {[%clk 0:02:58.9]} 4... Nf6 {[%clk 0:03:01]} 5. Bb5+ {[%clk
0:02:58.6]} 5... Nbd7 {[%clk 0:03:01.4]} 6. Bc4 {[%clk 0:02:58.4]} 6... g6
{[%clk 0:03:01.7]} 7. Nc3 {[%clk 0:02:56.3]} 7... Bg7 {[%clk 0:03:02.2]} 8. d4
{[%clk 0:02:56.3]} 8... O-O {[%clk 0:03:02.2]} 9. Nf3 {[%clk 0:02:56.2]} 9...
Nb6 {[%clk 0:03:02.2]} 10. Bb3 {[%clk 0:02:55.5]} 10... Nbxd5 {[%clk 0:03:02.3]}
11. O-O {[%clk 0:02:54.6]} 11... b6 {[%clk 0:03:02.5]} 12. Ne5 {[%clk
0:02:53.4]} 12... Bb7 {[%clk 0:03:02.9]} 13. h3 {[%clk 0:02:51.2]} 13... Rc8
{[%clk 0:02:57.4]} 14. Bd2 {[%clk 0:02:44.6]} 14... e6 {[%clk 0:02:43.6]} 15.
Rc1 {[%clk 0:02:42.7]} 15... Ne7 {[%clk 0:02:22.1]} 16. Bg5 {[%clk 0:02:39]}
16... h6 {[%clk 0:02:20.8]} 17. Be3 {[%clk 0:02:33.8]} 17... Nf5 {[%clk
0:02:11.4]} 18. Qd2 {[%clk 0:02:25.7]} 18... Nxe3 {[%clk 0:02:07.7]} 19. fxe3
{[%clk 0:02:25.3]} 19... Ne4 {[%clk 0:01:55.6]} 20. Nxe4 {[%clk 0:02:20.8]}
20... Bxe4 {[%clk 0:01:56.5]} 21. Nxf7 {[%clk 0:02:09.1]} 21... Rxc1 {[%clk
0:01:34.3]} 22. Qxc1 {[%clk 0:01:52.6]} 22... Rxf7 {[%clk 0:01:20.9]} 23. Bxe6
{[%clk 0:01:50.6]} 23... Bd5 {[%clk 0:01:18.9]} 24. Rxf7 {[%clk 0:01:38.1]}
24... Bxe6 {[%clk 0:01:17.5]} 25. Rxa7 {[%clk 0:01:29.4]} 25... Qb8 {[%clk
0:01:06.2]} 26. Rc7 {[%clk 0:01:20.6]} 26... Qa8 {[%clk 0:00:34.6]} 27. a3
{[%clk 0:01:14.4]} 27... Qe4 {[%clk 0:00:31.1]} 28. Kf2 {[%clk 0:01:04]} 28...
Bd5 {[%clk 0:00:29.5]} 29. Rc8+ {[%clk 0:01:01.4]} 29... Kh7 {[%clk 0:00:28.6]}
30. Qf1 {[%clk 0:01:00.4]} 30... Qf5+ {[%clk 0:00:28.3]} 31. Kg1 {[%clk
0:00:59.2]} 31... Qxc8 {[%clk 0:00:28.8]} 32. Qb5 {[%clk 0:00:55.9]} 32... Qe6
{[%clk 0:00:28.4]} 33. Kh2 {[%clk 0:00:49.7]} 33... Qxe3 {[%clk 0:00:22.6]} 34.
Qxd5 {[%clk 0:00:48.3]} 34... Qxd4 {[%clk 0:00:22.4]} 35. Qxd4 {[%clk
0:00:47.4]} 35... Bxd4 {[%clk 0:00:21.6]} 36. b3 {[%clk 0:00:47.8]} 36... Bb2
{[%clk 0:00:18]} 37. a4 {[%clk 0:00:47.6]} 37... Kg7 {[%clk 0:00:18.3]} 38. Kg3
{[%clk 0:00:47.8]} 38... Kf6 {[%clk 0:00:18.7]} 39. Kf3 {[%clk 0:00:48.3]} 39...
Ke5 {[%clk 0:00:18.7]} 40. Ke3 {[%clk 0:00:48.8]} 40... Ba3 {[%clk 0:00:18]} 41.
Kd3 {[%clk 0:00:48.8]} 41... Kf4 {[%clk 0:00:17.7]} 42. Kc4 {[%clk 0:00:46.8]}
42... Kg3 {[%clk 0:00:17.2]} 43. b4 {[%clk 0:00:45.7]} 43... Kxg2 {[%clk
0:00:15.5]} 44. a5 {[%clk 0:00:44.6]} 44... bxa5 {[%clk 0:00:15.1]} 45. bxa5
{[%clk 0:00:44.7]} 45... Bc1 {[%clk 0:00:15.4]} 46. Kd3 {[%clk 0:00:41]} 46...
Bf4 {[%clk 0:00:15.2]} 47. a6 {[%clk 0:00:39.8]} 47... Bb8 {[%clk 0:00:15.1]}
48. h4 {[%clk 0:00:39.4]} 48... Kg3 {[%clk 0:00:14.7]} 49. h5 {[%clk 0:00:39.3]}
49... g5 {[%clk 0:00:15]} 50. Ke2 {[%clk 0:00:38]} 50... Kg4 {[%clk 0:00:15.2]}
51. Kf2 {[%clk 0:00:35.8]} 51... Ba7+ {[%clk 0:00:15.2]} 52. Kg2 {[%clk
0:00:35.8]} 52... Kxh5 {[%clk 0:00:16.1]} 53. Kh3 {[%clk 0:00:35.8]} 53... Kg6
{[%clk 0:00:16.1]} 54. Kg4 {[%clk 0:00:35.4]} 54... h5+ {[%clk 0:00:17]} 55. Kg3
{[%clk 0:00:35.7]} 55... Kf5 {[%clk 0:00:17.2]} 56. Kh3 {[%clk 0:00:36]} 56...
h4 {[%clk 0:00:16.7]} 57. Kg2 {[%clk 0:00:36.6]} 57... g4 {[%clk 0:00:17.1]} 58.
Kh2 {[%clk 0:00:36.7]} 58... Kf4 {[%clk 0:00:15.9]} 59. Kg2 {[%clk 0:00:37]}
59... g3 {[%clk 0:00:14.4]} 60. Kh3 {[%clk 0:00:35]} 60... Kf3 {[%clk
0:00:14.5]} 61. Kxh4 {[%clk 0:00:31.2]} 61... g2 {[%clk 0:00:14.8]} 62. Kh3
{[%clk 0:00:31.4]} 62... g1=Q {[%clk 0:00:14.5]} 63. Kh4 {[%clk 0:00:31.4]}
63... Qg6 {[%clk 0:00:14]} 64. Kh3 {[%clk 0:00:29.4]} 64... Qg3# {[%clk
0:00:14.6]} 0-1

[Event "*** Titled Tuesday Blitz"]
[Site "Chess.com"]
[Date "2021.04.27"]
[Round "4"]
[White "Grieve72"]
[Black "dozer80"]
[Result "1-0"]
[WhiteElo "2504"]
[BlackElo "2645"]
[TimeControl "180+1"]
[EndTime "10:40:02 PDT"]
[Termination "Grieve72 won by checkmate"]

1. e4 {[%clk 0:03:00.9]} 1... c5 {[%clk 0:02:59.4]} 2. Nf3 {[%clk 0:03:01]} 2...
Nc6 {[%clk 0:02:58.8]} 3. d4 {[%clk 0:03:01.5]} 3... cxd4 {[%clk 0:02:59.7]} 4.
Nxd4 {[%clk 0:03:02.4]} 4... g6 {[%clk 0:02:59.2]} 5. c4 {[%clk 0:03:02.2]} 5...
Bg7 {[%clk 0:02:59.2]} 6. Be3 {[%clk 0:03:02.7]} 6... Nf6 {[%clk 0:02:57.8]} 7.
Nc3 {[%clk 0:03:03]} 7... O-O {[%clk 0:02:57.7]} 8. Be2 {[%clk 0:02:59.8]} 8...
d6 {[%clk 0:02:58]} 9. f3 {[%clk 0:02:59.9]} 9... Bd7 {[%clk 0:02:58.2]} 10. Qd2
{[%clk 0:02:59.4]} 10... Nxd4 {[%clk 0:02:56.5]} 11. Bxd4 {[%clk 0:03:00.3]}
11... a5 {[%clk 0:02:57]} 12. h4 {[%clk 0:02:59]} 12... a4 {[%clk 0:02:25.7]}
13. h5 {[%clk 0:02:50]} 13... Qa5 {[%clk 0:02:25.2]} 14. O-O-O {[%clk
0:02:32.1]} 14... Rfc8 {[%clk 0:02:05.5]} 15. hxg6 {[%clk 0:02:24.1]} 15... fxg6
{[%clk 0:02:03.8]} 16. Kb1 {[%clk 0:02:22.7]} 16... Be6 {[%clk 0:01:35.8]} 17.
Nd5 {[%clk 0:01:47.1]} 17... Bxd5 {[%clk 0:01:33.4]} 18. cxd5 {[%clk 0:01:38.4]}
18... Qxd2 {[%clk 0:01:32.8]} 19. Rxd2 {[%clk 0:01:39]} 19... Nd7 {[%clk
0:01:33.2]} 20. Be3 {[%clk 0:01:34.2]} 20... Ne5 {[%clk 0:01:25]} 21. Rc1 {[%clk
0:01:28.7]} 21... Rxc1+ {[%clk 0:00:52.8]} 22. Kxc1 {[%clk 0:01:29.6]} 22... a3
{[%clk 0:00:53.7]} 23. b3 {[%clk 0:01:20.6]} 23... Nd7 {[%clk 0:00:41.6]} 24.
Rc2 {[%clk 0:00:59.5]} 24... Bb2+ {[%clk 0:00:40.4]} 25. Kd2 {[%clk 0:00:54.2]}
25... b6 {[%clk 0:00:32.3]} 26. b4 {[%clk 0:00:45.7]} 26... Kf7 {[%clk 0:00:17]}
27. Rc7 {[%clk 0:00:35.4]} 27... Rd8 {[%clk 0:00:17.1]} 28. Bb5 {[%clk
0:00:30.4]} 28... Ne5 {[%clk 0:00:16.3]} 29. Bg5 {[%clk 0:00:20.2]} 29... h6
{[%clk 0:00:11.3]} 30. Bxe7 {[%clk 0:00:19.1]} 30... Rd7 {[%clk 0:00:07.9]} 31.
Bxd7 {[%clk 0:00:14.1]} 31... Kxe7 {[%clk 0:00:08.2]} 32. Bb5+ {[%clk
0:00:10.6]} 32... Kd8 {[%clk 0:00:08.1]} 33. Rb7 {[%clk 0:00:10.5]} 33... g5
{[%clk 0:00:07.1]} 34. Rxb6 {[%clk 0:00:10.2]} 34... Kc7 {[%clk 0:00:07.2]} 35.
Ra6 {[%clk 0:00:10.7]} 35... h5 {[%clk 0:00:06.9]} 36. Be2 {[%clk 0:00:07.5]}
36... h4 {[%clk 0:00:07]} 37. Ra7+ {[%clk 0:00:07.4]} 37... Kb6 {[%clk
0:00:06.9]} 38. Ra6+ {[%clk 0:00:06.3]} 38... Kc7 {[%clk 0:00:06]} 39. Kc2
{[%clk 0:00:06.7]} 39... Ng6 {[%clk 0:00:05.6]} 40. Ra7+ {[%clk 0:00:06.3]}
40... Kb6 {[%clk 0:00:04.6]} 41. Rd7 {[%clk 0:00:05.7]} 41... Be5 {[%clk
0:00:03.6]} 42. Kb3 {[%clk 0:00:04.9]} 42... Nf4 {[%clk 0:00:04.2]} 43. Bf1
{[%clk 0:00:05.5]} 43... Nh5 {[%clk 0:00:03.8]} 44. Kxa3 {[%clk 0:00:05.3]}
44... Ng3 {[%clk 0:00:04.7]} 45. Bd3 {[%clk 0:00:05.8]} 45... Nh1 {[%clk
0:00:04.4]} 46. Kb3 {[%clk 0:00:05.9]} 46... Nf2 {[%clk 0:00:05]} 47. Bf1 {[%clk
0:00:06.5]} 47... Nd1 {[%clk 0:00:05]} 48. Rh7 {[%clk 0:00:03.6]} 48... Ne3
{[%clk 0:00:04.5]} 49. Be2 {[%clk 0:00:03.9]} 49... Nxg2 {[%clk 0:00:04.8]} 50.
a4 {[%clk 0:00:04.5]} 50... Nf4 {[%clk 0:00:04.1]} 51. a5# {[%clk 0:00:04.9]}
1-0

[Event "*** Titled Tuesday Blitz"]
[Site "Chess.com"]
[Date "2021.04.27"]
[Round "4"]
[White "UmbertoConcelli"]
[Black "MikeSailer"]
[Result "1-0"]
[WhiteElo "2813"]
[BlackElo "2188"]
[TimeControl "180+1"]
[EndTime "10:40:02 PDT"]
[Termination "UmbertoConcelli won by resignation"]

1. d4 {[%clk 0:03:00.9]} 1... d5 {[%clk 0:02:59.3]} 2. c4 {[%clk 0:02:59.4]}
2... Bf5 {[%clk 0:02:59.4]} 3. Nc3 {[%clk 0:02:56.2]} 3... e6 {[%clk 0:03:00]}
4. Nf3 {[%clk 0:02:53.3]} 4... Nc6 {[%clk 0:03:00.1]} 5. cxd5 {[%clk 0:02:47.8]}
5... exd5 {[%clk 0:03:00.2]} 6. a3 {[%clk 0:02:35.2]} 6... Nf6 {[%clk
0:02:57.1]} 7. Bg5 {[%clk 0:02:34.5]} 7... Be7 {[%clk 0:02:57.7]} 8. e3 {[%clk
0:02:32.9]} 8... Ne4 {[%clk 0:02:56.2]} 9. Bxe7 {[%clk 0:02:24.7]} 9... Nxe7
{[%clk 0:02:56.4]} 10. Bd3 {[%clk 0:02:23.9]} 10... Nxc3 {[%clk 0:02:52.9]} 11.
bxc3 {[%clk 0:02:23.5]} 11... O-O {[%clk 0:02:44.9]} 12. O-O {[%clk 0:02:22.5]}
12... c6 {[%clk 0:02:42.1]} 13. c4 {[%clk 0:02:21.5]} 13... Bxd3 {[%clk
0:02:32.7]} 14. Qxd3 {[%clk 0:02:20.6]} 14... dxc4 {[%clk 0:02:31.5]} 15. Qxc4
{[%clk 0:02:21.5]} 15... Qd5 {[%clk 0:02:19.6]} 16. Qb4 {[%clk 0:02:20.8]} 16...
Qd7 {[%clk 0:02:10.6]} 17. Rab1 {[%clk 0:02:19.4]} 17... Rab8 {[%clk 0:02:09.2]}
18. a4 {[%clk 0:02:18.9]} 18... Nd5 {[%clk 0:02:05.8]} 19. Qc5 {[%clk
0:02:18.4]} 19... b6 {[%clk 0:01:53.9]} 20. Qa3 {[%clk 0:02:16.8]} 20... Rfc8
{[%clk 0:01:44.6]} 21. Rfc1 {[%clk 0:02:14.3]} 21... a5 {[%clk 0:01:35.3]} 22.
Ne5 {[%clk 0:02:12.8]} 22... Qe6 {[%clk 0:01:30.4]} 23. Qb3 {[%clk 0:01:58.5]}
23... Nb4 {[%clk 0:01:25]} 24. Qxe6 {[%clk 0:01:54.3]} 24... fxe6 {[%clk
0:01:25.3]} 25. h4 {[%clk 0:01:49.7]} 25... Kf8 {[%clk 0:01:23.5]} 26. Nd7+
{[%clk 0:01:48.8]} 26... Ke7 {[%clk 0:01:23.8]} 27. Nxb8 {[%clk 0:01:49.7]}
27... Rxb8 {[%clk 0:01:24.6]} 28. Rc4 {[%clk 0:01:47.3]} 28... Kd6 {[%clk
0:01:24]} 29. Rcxb4 {[%clk 0:01:44.8]} 29... axb4 {[%clk 0:01:23.6]} 30. Rxb4
{[%clk 0:01:45.7]} 30... e5 {[%clk 0:01:13.8]} 31. Kf1 {[%clk 0:01:33.5]} 31...
exd4 {[%clk 0:01:13.9]} 32. exd4 {[%clk 0:01:32.8]} 32... Kd5 {[%clk 0:01:14.5]}
33. f3 {[%clk 0:01:27.6]} 33... h5 {[%clk 0:01:08.7]} 34. Kf2 {[%clk 0:01:27.1]}
34... Ra8 {[%clk 0:00:56.3]} 35. Rxb6 {[%clk 0:01:24]} 35... Rxa4 {[%clk
0:00:56.1]} 36. Rb7 {[%clk 0:01:24]} 36... Kxd4 {[%clk 0:00:45.4]} 37. Rxg7
{[%clk 0:01:21.1]} 37... Ra5 {[%clk 0:00:45.9]} 38. g4 {[%clk 0:01:14.8]} 38...
hxg4 {[%clk 0:00:41.7]} 39. fxg4 {[%clk 0:01:05.5]} 39... c5 {[%clk 0:00:41.4]}
40. h5 {[%clk 0:00:55.5]} 40... c4 {[%clk 0:00:39.1]} 41. h6 {[%clk 0:00:55.6]}
41... Ra1 {[%clk 0:00:30.3]} 42. Kg2 {[%clk 0:00:46.5]} 42... Ra2+ {[%clk
0:00:30.6]} 43. Kg3 {[%clk 0:00:46.6]} 43... Ra1 {[%clk 0:00:31]} 44. g5 {[%clk
0:00:44]} 44... c3 {[%clk 0:00:30.4]} 45. Rc7 {[%clk 0:00:40.3]} 45... Rg1+
{[%clk 0:00:26.3]} 46. Kf4 {[%clk 0:00:39.6]} 46... Rf1+ {[%clk 0:00:17.4]} 47.
Kg4 {[%clk 0:00:39.4]} 47... Rg1+ {[%clk 0:00:16]} 48. Kf5 {[%clk 0:00:39.4]}
48... Kd3 {[%clk 0:00:15.3]} 49. h7 {[%clk 0:00:37.4]} 49... Rh1 {[%clk
0:00:15.6]} 50. g6 {[%clk 0:00:35]} 50... c2 {[%clk 0:00:16]} 51. Kf6 {[%clk
0:00:24.4]} 51... Kd2 {[%clk 0:00:11.8]} 52. Kg7 {[%clk 0:00:21.2]} 52... c1=Q
{[%clk 0:00:08.8]} 53. Rxc1 {[%clk 0:00:19.4]} 53... Kxc1 {[%clk 0:00:09.4]} 54.
h8=Q {[%clk 0:00:20.3]} 1-0

[Event "*** Titled Tuesday Blitz"]
[Site "Chess.com"]
[Date "2021.04.27"]
[Round "4"]
[White "malakismayil"]
[Black "salomez"]
[Result "0-1"]
[WhiteElo "2255"]
[BlackElo "2118"]
[TimeControl "180+1"]
[EndTime "10:40:02 PDT"]
[Termination "salomez won by checkmate"]

1. e4 {[%clk 0:03:00.9]} 1... c5 {[%clk 0:02:59.6]} 2. Nf3 {[%clk 0:02:59.2]}
2... e6 {[%clk 0:02:59.1]} 3. d4 {[%clk 0:02:57.4]} 3... cxd4 {[%clk 0:03:00]}
4. Nxd4 {[%clk 0:02:57.5]} 4... Nf6 {[%clk 0:03:00]} 5. Bd3 {[%clk 0:02:53.6]}
5... Nc6 {[%clk 0:03:00.9]} 6. Nb3 {[%clk 0:02:51.5]} 6... d5 {[%clk 0:02:56.3]}
7. exd5 {[%clk 0:02:39.9]} 7... Nxd5 {[%clk 0:02:53.8]} 8. O-O {[%clk
0:02:37.4]} 8... Be7 {[%clk 0:02:51.6]} 9. c4 {[%clk 0:02:36.7]} 9... Nf6 {[%clk
0:02:51.2]} 10. Nc3 {[%clk 0:02:35.5]} 10... O-O {[%clk 0:02:51.3]} 11. Bf4
{[%clk 0:02:30.5]} 11... e5 {[%clk 0:02:49.7]} 12. Bg3 {[%clk 0:02:29.5]} 12...
Be6 {[%clk 0:02:49.5]} 13. Qe2 {[%clk 0:02:28.6]} 13... Rc8 {[%clk 0:02:43.9]}
14. Rad1 {[%clk 0:02:26.1]} 14... Qc7 {[%clk 0:02:42.9]} 15. Rfe1 {[%clk
0:02:22]} 15... a6 {[%clk 0:02:38.3]} 16. Nd2 {[%clk 0:01:43.8]} 16... Rfd8
{[%clk 0:02:36.7]} 17. Nf3 {[%clk 0:01:42.3]} 17... Bd6 {[%clk 0:01:49.7]} 18.
c5 {[%clk 0:01:23.9]} 18... Bxc5 {[%clk 0:01:47]} 19. Nxe5 {[%clk 0:01:22]}
19... Nd4 {[%clk 0:01:42.5]} 20. Qd2 {[%clk 0:01:15.4]} 20... Qa5 {[%clk
0:01:37.1]} 21. Bh4 {[%clk 0:00:46.6]} 21... Be7 {[%clk 0:01:34.1]} 22. Qf4
{[%clk 0:00:35.1]} 22... Nc6 {[%clk 0:01:07.7]} 23. Nf3 {[%clk 0:00:25.7]} 23...
h6 {[%clk 0:00:48.6]} 24. Ne4 {[%clk 0:00:21.9]} 24... Nh5 {[%clk 0:00:34.9]}
25. Bxe7 {[%clk 0:00:07.2]} 25... Nxf4 {[%clk 0:00:33.4]} 26. Bxd8 {[%clk
0:00:07.7]} 26... Rxd8 {[%clk 0:00:30.3]} 27. Bb1 {[%clk 0:00:07]} 27... Rxd1
{[%clk 0:00:29]} 28. Rxd1 {[%clk 0:00:07.9]} 28... Bd5 {[%clk 0:00:27.3]} 29. g3
{[%clk 0:00:06.6]} 29... Ne6 {[%clk 0:00:17.6]} 30. Nfd2 {[%clk 0:00:05.6]}
30... Ncd4 {[%clk 0:00:14.4]} 31. Nc3 {[%clk 0:00:05]} 31... Bc6 {[%clk
0:00:13.5]} 32. Be4 {[%clk 0:00:03.9]} 32... Bxe4 {[%clk 0:00:12.8]} 33. Ndxe4
{[%clk 0:00:04.8]} 33... Kh7 {[%clk 0:00:10.5]} 34. f4 {[%clk 0:00:04.7]} 34...
Qb4 {[%clk 0:00:09.5]} 35. b3 {[%clk 0:00:03]} 35... Qb6 {[%clk 0:00:07.4]} 36.
Kg2 {[%clk 0:00:02.6]} 36... Qc7 {[%clk 0:00:07.2]} 37. Rd2 {[%clk 0:00:02.8]}
37... b5 {[%clk 0:00:06.4]} 38. Nd5 {[%clk 0:00:02.7]} 38... Qb7 {[%clk
0:00:05.9]} 39. Nec3 {[%clk 0:00:02.7]} 39... b4 {[%clk 0:00:05.8]} 40. Rd3
{[%clk 0:00:02.3]} 40... bxc3 {[%clk 0:00:05.7]} 41. Kh3 {[%clk 0:00:02.7]}
41... Qxd5 {[%clk 0:00:05.9]} 42. Rxc3 {[%clk 0:00:03.3]} 42... Qf5+ {[%clk
0:00:06]} 43. g4 {[%clk 0:00:02.4]} 43... Qe4 {[%clk 0:00:06.9]} 44. Re3 {[%clk
0:00:01.2]} 44... Nxf4+ {[%clk 0:00:07.1]} 45. Kh4 {[%clk 0:00:02.1]} 45... Nf3+
{[%clk 0:00:06.5]} 46. Kg3 {[%clk 0:00:02.2]} 46... Qxe3 {[%clk 0:00:05.3]} 47.
h4 {[%clk 0:00:03.1]} 47... Ne5+ {[%clk 0:00:04.8]} 48. Kh2 {[%clk 0:00:03]}
48... Qf2+ {[%clk 0:00:05.1]} 49. Kh1 {[%clk 0:00:03.2]} 49... Qg2# {[%clk
0:00:06]} 0-1

[Event "*** Titled Tuesday Blitz"]
[Site "Chess.com"]
[Date "2021.04.27"]
[Round "4"]
[White "vinniethepooh"]
[Black "GM_LOADING"]
[Result "0-1"]
[WhiteElo "2718"]
[BlackElo "2560"]
[TimeControl "180+1"]
[EndTime "10:40:04 PDT"]
[Termination "GM_LOADING won by resignation"]

1. d4 {[%clk 0:03:00.9]} 1... Nf6 {[%clk 0:02:59.1]} 2. c4 {[%clk 0:03:01.5]}
2... e6 {[%clk 0:02:53.2]} 3. Nc3 {[%clk 0:03:01.3]} 3... Bb4 {[%clk 0:02:53.1]}
4. f3 {[%clk 0:03:00.9]} 4... c5 {[%clk 0:02:53]} 5. d5 {[%clk 0:03:00]} 5...
exd5 {[%clk 0:02:53]} 6. cxd5 {[%clk 0:03:00.9]} 6... O-O {[%clk 0:02:52.9]} 7.
e4 {[%clk 0:03:01.4]} 7... d6 {[%clk 0:02:52.9]} 8. Bd3 {[%clk 0:03:00.1]} 8...
a6 {[%clk 0:02:53.2]} 9. Ne2 {[%clk 0:03:00.2]} 9... Nbd7 {[%clk 0:02:50.8]} 10.
O-O {[%clk 0:03:00.5]} 10... Re8 {[%clk 0:02:51.4]} 11. Kh1 {[%clk 0:02:59.6]}
11... Nf8 {[%clk 0:02:51.6]} 12. Bg5 {[%clk 0:02:56.4]} 12... h6 {[%clk
0:02:50.7]} 13. Bh4 {[%clk 0:02:56.5]} 13... Ng6 {[%clk 0:02:50.3]} 14. Bf2
{[%clk 0:02:54.3]} 14... Bd7 {[%clk 0:02:49.1]} 15. Rb1 {[%clk 0:02:29.5]} 15...
b5 {[%clk 0:02:25]} 16. a3 {[%clk 0:02:27.4]} 16... Ba5 {[%clk 0:02:25.2]} 17.
b4 {[%clk 0:02:27.2]} 17... cxb4 {[%clk 0:02:25.8]} 18. axb4 {[%clk 0:02:26.9]}
18... Bb6 {[%clk 0:02:26.5]} 19. Qe1 {[%clk 0:01:58.8]} 19... Ne5 {[%clk
0:02:17.4]} 20. Bc2 {[%clk 0:01:55.5]} 20... Rc8 {[%clk 0:02:17.2]} 21. Bxb6
{[%clk 0:01:27.5]} 21... Qxb6 {[%clk 0:02:17]} 22. Qf2 {[%clk 0:01:28]} 22...
Qxf2 {[%clk 0:02:13.6]} 23. Rxf2 {[%clk 0:01:28.9]} 23... Rc7 {[%clk 0:02:13.4]}
24. Ra1 {[%clk 0:01:09.3]} 24... Rec8 {[%clk 0:02:11.7]} 25. f4 {[%clk
0:01:09.4]} 25... Nc4 {[%clk 0:02:02.8]} 26. Rf3 {[%clk 0:00:26.7]} 26... Nd2
{[%clk 0:01:43.3]} 27. Re3 {[%clk 0:00:27]} 27... Bg4 {[%clk 0:01:17.7]} 28. Bd1
{[%clk 0:00:21.3]} 28... Bxe2 {[%clk 0:01:12.3]} 29. Nxe2 {[%clk 0:00:22.2]}
29... Nfxe4 {[%clk 0:01:06.8]} 30. Kg1 {[%clk 0:00:20.7]} 30... Rc4 {[%clk
0:00:59.1]} 31. Ng3 {[%clk 0:00:18]} 31... Nxg3 {[%clk 0:00:24.6]} 32. hxg3
{[%clk 0:00:16.3]} 32... Rc1 {[%clk 0:00:25.3]} 33. Rxc1 {[%clk 0:00:15]} 33...
Rxc1 {[%clk 0:00:24.9]} 34. Re1 {[%clk 0:00:15.6]} 34... Nc4 {[%clk 0:00:17.6]}
35. Kf2 {[%clk 0:00:15.7]} 35... Kf8 {[%clk 0:00:18]} 36. Bg4 {[%clk 0:00:05.9]}
36... Rxe1 {[%clk 0:00:17.9]} 37. Kxe1 {[%clk 0:00:06.8]} 37... Ne3 {[%clk
0:00:16.6]} 38. Bc8 {[%clk 0:00:05.2]} 38... Nc2+ {[%clk 0:00:16.6]} 39. Kd2
{[%clk 0:00:04.9]} 39... Nxb4 {[%clk 0:00:17.5]} 40. Bb7 {[%clk 0:00:03.6]}
40... Ke7 {[%clk 0:00:14.3]} 41. Kc3 {[%clk 0:00:03.8]} 41... a5 {[%clk
0:00:14.8]} 42. g4 {[%clk 0:00:02.1]} 42... Kd8 {[%clk 0:00:14.7]} 43. Ba8
{[%clk 0:00:01.1]} 43... Kc7 {[%clk 0:00:14.5]} 44. g5 {[%clk 0:00:01.7]} 44...
hxg5 {[%clk 0:00:14.4]} 45. fxg5 {[%clk 0:00:02.6]} 45... f6 {[%clk 0:00:13.6]}
46. g6 {[%clk 0:00:02]} 46... Kb6 {[%clk 0:00:13.8]} 47. Kd4 {[%clk 0:00:02.3]}
47... a4 {[%clk 0:00:11.2]} 48. Kc3 {[%clk 0:00:02.7]} 48... a3 {[%clk
0:00:11.7]} 49. Kb3 {[%clk 0:00:02.2]} 49... a2 {[%clk 0:00:12.1]} 50. g4 {[%clk
0:00:02.7]} 50... a1=Q {[%clk 0:00:10.4]} 0-1

[Event "*** Titled Tuesday Blitz"]
[Site "Chess.com"]
[Date "2021.04.27"]
[Round "4"]
[White "ehrenfeld"]
[Black "Abund"]
[Result "1/2-1/2"]
[WhiteElo "2528"]
[BlackElo "2741"]
[TimeControl "180+1"]
[EndTime "10:40:05 PDT"]
[Termination "Game drawn by repetition"]

1. e4 {[%clk 0:03:00.9]} 1... c5 {[%clk 0:02:59.7]} 2. Nf3 {[%clk 0:02:58.6]}
2... d6 {[%clk 0:02:59.9]} 3. Bc4 {[%clk 0:02:58.5]} 3... Nf6 {[%clk 0:02:59.4]}
4. d3 {[%clk 0:02:58.7]} 4... Nc6 {[%clk 0:02:59.2]} 5. O-O {[%clk 0:02:52.7]}
5... g6 {[%clk 0:02:59.5]} 6. h3 {[%clk 0:02:52.1]} 6... Bg7 {[%clk 0:02:59.7]}
7. Nc3 {[%clk 0:02:52.2]} 7... O-O {[%clk 0:03:00]} 8. a3 {[%clk 0:02:52.5]}
8... Rb8 {[%clk 0:02:54.2]} 9. Be3 {[%clk 0:02:48.9]} 9... a6 {[%clk 0:02:47.8]}
10. Ba2 {[%clk 0:02:47.8]} 10... b5 {[%clk 0:02:46.6]} 11. Qd2 {[%clk
0:02:47.8]} 11... e5 {[%clk 0:02:38.2]} 12. Nd5 {[%clk 0:02:42.2]} 12... Nxd5
{[%clk 0:02:35.3]} 13. Bxd5 {[%clk 0:02:40.7]} 13... Qc7 {[%clk 0:02:32.1]} 14.
c3 {[%clk 0:02:38.9]} 14... Be6 {[%clk 0:02:31.5]} 15. Bxe6 {[%clk 0:02:35.3]}
15... fxe6 {[%clk 0:02:31.3]} 16. b4 {[%clk 0:02:31.2]} 16... Qe7 {[%clk
0:02:12.1]} 17. Qe2 {[%clk 0:02:21.6]} 17... cxb4 {[%clk 0:02:01.7]} 18. axb4
{[%clk 0:02:21.3]} 18... Ra8 {[%clk 0:02:01.9]} 19. Nd2 {[%clk 0:02:12.8]} 19...
d5 {[%clk 0:01:56.7]} 20. Bc5 {[%clk 0:02:11.5]} 20... Qd7 {[%clk 0:01:56]} 21.
Bxf8 {[%clk 0:02:11.3]} 21... Bxf8 {[%clk 0:01:56.4]} 22. Nf3 {[%clk 0:02:08.4]}
22... d4 {[%clk 0:01:52]} 23. cxd4 {[%clk 0:02:07]} 23... Nxd4 {[%clk
0:01:45.4]} 24. Nxd4 {[%clk 0:02:05.7]} 24... Qxd4 {[%clk 0:01:45]} 25. Qa2
{[%clk 0:01:56.5]} 25... Kf7 {[%clk 0:01:36.9]} 26. Rac1 {[%clk 0:01:50.4]}
26... Ra7 {[%clk 0:01:30.8]} 27. Rc6 {[%clk 0:01:48.7]} 27... Re7 {[%clk
0:01:23.2]} 28. Qb3 {[%clk 0:01:40]} 28... Bh6 {[%clk 0:01:10.1]} 29. Rxa6
{[%clk 0:01:37.4]} 29... Bd2 {[%clk 0:01:09.9]} 30. Kh1 {[%clk 0:01:18.8]} 30...
Bxb4 {[%clk 0:00:55.3]} 31. f4 {[%clk 0:01:16]} 31... exf4 {[%clk 0:00:42.8]}
32. Rxf4+ {[%clk 0:01:15.9]} 32... Kg7 {[%clk 0:00:42.9]} 33. Rf1 {[%clk
0:00:40.1]} 33... e5 {[%clk 0:00:31.5]} 34. Rb1 {[%clk 0:00:36.8]} 34... Bd2
{[%clk 0:00:20.7]} 35. Qxb5 {[%clk 0:00:35.1]} 35... Bf4 {[%clk 0:00:13]} 36.
Qb6 {[%clk 0:00:20.2]} 36... Qd7 {[%clk 0:00:10.5]} 37. Qf6+ {[%clk 0:00:19.3]}
37... Kh6 {[%clk 0:00:10.7]} 38. Qh4+ {[%clk 0:00:18.1]} 38... Kg7 {[%clk
0:00:10.9]} 39. Rab6 {[%clk 0:00:18.5]} 39... Rf7 {[%clk 0:00:09.2]} 40. Rb7
{[%clk 0:00:13.9]} 40... Qxb7 {[%clk 0:00:07.2]} 41. Rxb7 {[%clk 0:00:14]} 41...
Rxb7 {[%clk 0:00:08.1]} 42. g3 {[%clk 0:00:13.6]} 42... Be3 {[%clk 0:00:06.7]}
43. Kg2 {[%clk 0:00:11.5]} 43... Bd4 {[%clk 0:00:06.5]} 44. Qd8 {[%clk 0:00:09]}
44... Rf7 {[%clk 0:00:06.4]} 45. h4 {[%clk 0:00:08.5]} 45... h5 {[%clk
0:00:06.4]} 46. Kh3 {[%clk 0:00:08.5]} 46... Kh7 {[%clk 0:00:06.1]} 47. Qd5
{[%clk 0:00:07.6]} 47... Kg7 {[%clk 0:00:06.1]} 48. Qd6 {[%clk 0:00:07.6]} 48...
Rf3 {[%clk 0:00:05.4]} 49. Qe7+ {[%clk 0:00:07.5]} 49... Rf7 {[%clk 0:00:04.3]}
50. Qd6 {[%clk 0:00:07.5]} 50... Kh7 {[%clk 0:00:04.2]} 51. Qe6 {[%clk
0:00:07.1]} 51... Kg7 {[%clk 0:00:04]} 52. Qd6 {[%clk 0:00:06.9]} 1/2-1/2